bitfinex/quotes_SOLUSD_20241214
["timestamp","ask_amount","ask_price","bid_price","bid_amount"]
[1734195445236,1.5061,221.38,221.31,0.67753454]
[1734195445237,6.4513,221.39,221.35,8.60417385]
[1734195445437,6.4513,221.39,221.36,0.12549]
[1734195445778,1.5061,221.43,221.36,0.12549]
[1734195445942,1.5061,221.43,221.36,8.72966385]
[1734195448084,6.4513,221.45,221.41,0.12549]
[1734195448569,1.5061,221.48,221.41,0.12549]
[1734195448771,1.5061,221.48,221.41,8.72966385]
[1734195448968,1.5061,221.48,221.43,0.12549]
[1734195449178,1.5061,221.48,221.42,0.12549]
[1734195449477,1.5061,221.48,221.41,0.25098]
[1734195450571,1.5061,221.48,221.42,0.12549]
[1734195453378,1.5061,221.48,221.43,0.12549]
[1734195455251,1.5061,221.48,221.42,0.25098]
[1734195456576,1.5061,221.48,221.42,8.85515385]
[1734195460262,6.4513,221.5,221.42,8.85515385]
[1734195460679,6.4513,221.5,221.44,0.12549]
[1734195464976,6.4513,221.5,221.46,0.12549]
[1734195467764,6.4513,221.5,221.44,0.12549]
[1734195479095,6.4513,221.5,221.45,0.12549]
[1734195484302,6.4513,221.5,221.39,0.67718159]
[1734195484510,6.4513,221.5,221.39,8.60417385]
[1734195484705,6.4513,221.5,221.4,0.12549]
[1734195484898,6.4513,221.5,221.4,0.25098]
[1734195485690,6.4513,221.5,221.41,8.98064385]
[1734195486989,20.0,221.47,221.41,8.98064385]
[1734195487391,20.0,221.47,221.41,0.37647]
[1734195489413,20.0,221.47,221.41,8.98064385]
[1734195490109,6.4513,221.5,221.41,0.37647]
[1734195491311,6.4513,221.5,221.44,0.25098]
[1734195492030,6.4513,221.5,221.43,0.37647]
[1734195493832,6.4513,221.5,221.43,8.98064385]
[1734195494505,1.55,221.53,221.48,0.12549]
[1734195494707,6.2311,221.55,221.48,0.12549]
[1734195494708,6.2311,221.55,221.51,8.85515385]
[1734195495828,1.6547,221.58,221.53,0.12549]
[1734195496039,1.6547,221.58,221.53,0.25098]
[1734195496223,1.6547,221.58,221.53,8.85515385]
[1734195499539,20.0,221.54,221.47,0.67694757]
[1734195499725,20.0,221.54,221.33,8.60417385]
[1734195499726,23.776884,221.48,221.33,8.60417385]
[1734195500039,23.776884,221.48,221.35,30.0]
[1734195500428,23.776884,221.48,221.34,0.25098]
[1734195500626,23.776884,221.48,221.33,8.60417385]
[1734195501207,23.776884,221.48,221.34,0.37647]
[1734195501410,23.776884,221.48,221.34,2.76555791]
[1734195501411,20.0,221.45,221.34,2.76555791]
[1734195501934,1.5113,221.44,221.31,8.60417385]
[1734195502132,23.776884,221.43,221.32,30.0]
[1734195502318,20.0,221.4,221.28,8.60417385]
[1734195502633,6.3413,221.39,221.28,11.29525047]
[1734195502838,6.3413,221.39,221.29,8.85515385]
[1734195503412,7.052776,221.53,221.38,173.30417385]
[1734195503621,6.3413,221.54,221.49,8.60417385]
[1734195504229,6.3413,221.54,221.48,0.12549]
[1734195504624,6.3413,221.54,221.48,0.25098]
[1734195505222,6.3413,221.54,221.49,0.12549]
[1734195505426,6.3413,221.54,221.49,0.25098]
[1734195507346,1.5113,221.56,221.49,0.25098]
[1734195509549,1.5113,221.56,221.49,0.12549]
[1734195509735,23.776884,221.55,221.42,20.0]
[1734195510043,23.776884,221.55,221.43,13.44348525]
[1734195510631,23.776884,221.55,221.44,0.12549]
[1734195510832,23.776884,221.55,221.44,13.56897525]
[1734195511035,23.776884,221.55,221.44,13.44348525]
[1734195511555,23.776884,221.55,221.41,0.67724102]
[1734195511556,23.776884,221.55,221.45,13.56897525]
[1734195512348,23.776884,221.55,221.45,0.12549]
[1734195513150,23.776884,221.55,221.44,0.12549]
[1734195513448,23.776884,221.55,221.44,13.56897525]
[1734195516251,23.776884,221.55,221.44,0.12549]
[1734195516928,20.0,221.52,221.43,0.12549]
[1734195517346,20.0,221.52,221.42,0.12549]
[1734195517549,20.0,221.52,221.42,13.56897525]
[1734195517855,20.0,221.52,221.43,0.12549]
[1734195519129,23.776884,221.55,221.43,0.12549]
[1734195519622,20.0,221.52,221.43,0.12549]
[1734195520452,20.0,221.52,221.42,0.25098]
[1734195521328,20.0,221.52,221.42,0.37647]
[1734195525477,20.0,221.52,221.42,8.98602041]
[1734195525643,20.0,221.52,221.44,0.25098]
[1734195526955,20.0,221.52,221.42,0.12549]
[1734195527278,20.0,221.52,221.41,8.60955041]
[1734195527279,20.0,221.52,221.41,0.12549]
[1734195527454,20.0,221.52,221.41,0.37647]
[1734195528169,20.0,221.52,221.41,8.98602041]
[1734195529641,20.0,221.52,221.43,0.12549]
[1734195531159,20.0,221.52,221.43,0.25098]
[1734195532952,20.0,221.52,221.45,0.25098]
[1734195533560,20.0,221.52,221.45,0.12549]
[1734195534078,23.776884,221.55,221.45,0.12549]
[1734195534079,20.0,221.55,221.45,0.12549]
[1734195534284,21.5113,221.56,221.45,0.25098]
[1734195536593,21.5113,221.56,221.44,0.12549]
[1734195536594,20.0,221.52,221.4,21.5697]
[1734195536892,20.0,221.52,221.41,0.37647]
[1734195537921,20.0,221.52,221.41,8.98602041]
[1734195540108,20.0,221.52,221.43,0.25098]
[1734195555372,23.776884,221.51,221.4,1.5697]
[1734195555520,20.0,221.48,221.4,1.5697]
[1734195555724,20.0,221.48,221.41,0.12549]
[1734195559149,20.0,221.48,221.41,0.25098]
[1734195559349,23.776884,221.51,221.43,0.25098]
[1734195559350,20.0,221.51,221.43,0.25098]
[1734195559537,20.0,221.51,221.43,0.12549]
[1734195559742,23.776884,221.53,221.43,0.12549]
[1734195560128,7.052776,221.54,221.43,0.12549]
[1734195560129,23.776884,221.54,221.43,0.12549]
[1734195561053,20.0,221.51,221.42,0.12549]
[1734195561755,7.052776,221.53,221.42,0.12549]
[1734195561756,7.052776,221.53,221.46,0.12549]
[1734195561944,7.052776,221.56,221.46,8.86053041]
[1734195562167,7.052776,221.56,221.48,0.25098]
[1734195562529,7.052776,221.57,221.48,0.25098]
[1734195562758,7.052776,221.58,221.47,0.37647]
[1734195563290,20.0,221.55,221.47,0.37647]
[1734195564230,7.052776,221.58,221.47,0.37647]
[1734195564436,7.052776,221.58,221.49,0.12549]
[1734195564654,20.0,221.57,221.49,0.12549]
[1734195564852,20.0,221.56,221.49,0.12549]
[1734195566360,23.776884,221.59,221.49,0.12549]
[1734195569258,23.776884,221.6,221.49,0.12549]
[1734195569864,23.776884,221.6,221.49,0.25098]
[1734195570845,7.052776,221.61,221.51,0.12549]
[1734195571043,7.052776,221.62,221.53,0.12549]
[1734195571244,29.81950403,221.66,221.53,0.12549]
[1734195571245,7.052776,221.63,221.53,0.12549]
[1734195571453,7.052776,221.63,221.53,0.25098]
[1734195571454,20.0,221.63,221.53,0.25098]
[1734195572139,20.0,221.65,221.53,0.25098]
[1734195572572,20.0,221.61,221.53,0.25098]
[1734195573868,20.0,221.61,221.51,6.1447]
[1734195574045,23.776884,221.6,221.49,0.12549]
[1734195574241,23.776884,221.6,221.5,0.12549]
[1734195577067,20.0,221.57,221.48,1.5608]
[1734195577464,20.0,221.57,221.49,0.12549]
[1734195580787,23.776884,221.56,221.48,1.5608]
[1734195581162,23.776884,221.56,221.43,0.25098]
[1734195582282,20.0,221.53,221.44,0.12549]
[1734195583381,20.0,221.49,221.42,1.6537]
[1734195584658,23.776884,221.48,221.42,1.6537]
[1734195589388,20.0,221.52,221.42,1.6537]
[1734195589568,23.776884,221.51,221.42,1.6537]
[1734195589777,20.0,221.48,221.42,1.6537]
[1734195592596,20.0,221.48,221.43,0.12549]
[1734195592804,20.0,221.53,221.43,0.12549]
[1734195593965,90.403276,221.58,221.44,8.60955041]
[1734195594164,90.403276,221.58,221.45,0.12549]
[1734195594571,90.403276,221.58,221.44,0.25098]
[1734195594772,90.403276,221.58,221.44,0.12549]
[1734195595165,23.776884,221.57,221.44,8.73504041]
[1734195595404,23.776884,221.57,221.44,0.25098]
[1734195596086,20.0,221.54,221.44,0.25098]
[1734195596394,20.0,221.54,221.43,0.37647]
[1734195597277,19.5,221.54,221.43,0.37647]
[1734195600388,23.776884,221.53,221.42,1.6537]
[1734195600774,20.0,221.5,221.42,1.6537]
[1734195601201,20.0,221.53,221.42,1.6537]
[1734195601397,20.0,221.54,221.42,1.6537]
[1734195601701,20.0,221.5,221.42,1.6537]
[1734195603803,20.0,221.53,221.43,0.12549]
[1734195603991,29.29605201,221.58,221.43,0.37647]
[1734195603992,20.0,221.54,221.43,0.37647]
[1734195604184,20.0,221.55,221.43,0.37647]
[1734195604501,20.0,221.56,221.43,0.37647]
[1734195604679,23.776884,221.57,221.43,0.37647]
[1734195606190,20.0,221.54,221.43,0.37647]
[1734195608344,20.0,221.54,221.45,0.12549]
[1734195617410,20.0,221.5,221.42,1.6537]
[1734195622790,7.052776,221.57,221.45,0.12549]
[1734195623212,88.752776,221.59,221.45,0.12549]
[1734195623418,7.052776,221.59,221.44,8.86053041]
[1734195623622,7.052776,221.59,221.44,0.25098]
[1734195624392,23.776884,221.58,221.44,0.25098]
[1734195624622,20.0,221.55,221.44,0.25098]
[1734195626528,20.0,221.54,221.44,0.25098]
[1734195627736,20.0,221.53,221.44,0.25098]
[1734195628034,20.0,221.54,221.44,0.25098]
[1734195631312,20.0,221.53,221.44,0.25098]
[1734195631615,20.0,221.54,221.44,0.25098]
[1734195632429,20.0,221.53,221.44,0.25098]
[1734195633114,20.0,221.53,221.43,0.12549]
[1734195633115,20.0,221.53,221.42,1.6537]
[1734195633432,20.0,221.51,221.42,1.6537]
[1734195634407,20.0,221.5,221.42,1.6537]
[1734195635430,20.0,221.51,221.42,1.6537]
[1734195635632,20.0,221.5,221.42,1.6537]
[1734195638603,20.0,221.49,221.42,1.6537]
[1734195638913,20.0,221.48,221.42,1.6537]
[1734195639506,20.0,221.47,221.42,1.6537]
[1734195640220,20.0,221.48,221.42,1.6537]
[1734195646830,7.052776,221.53,221.43,8.73504041]
[1734195647036,7.052776,221.53,221.44,8.60955041]
[1734195647210,7.052776,221.54,221.44,8.60955041]
[1734195647534,7.052776,221.54,221.43,8.86053041]
[1734195648125,20.0,221.51,221.43,8.86053041]
[1734195648323,20.0,221.51,221.43,0.25098]
[1734195650147,20.0,221.51,221.42,1.6537]
[1734195650363,20.0,221.47,221.42,1.6537]
[1734195652452,7.052776,221.52,221.43,0.12549]
[1734195652753,28.21110403,221.55,221.43,0.12549]
[1734195652754,7.052776,221.54,221.43,0.12549]
[1734195654159,20.0,221.51,221.43,0.12549]
[1734195655636,7.052776,221.54,221.43,0.12549]
[1734195655637,20.0,221.52,221.43,0.12549]
[1734195658181,20.0,221.51,221.43,0.12549]
[1734195658365,20.0,221.51,221.43,8.73504041]
[1734195659246,20.0,221.52,221.43,8.73504041]
[1734195660741,20.0,221.52,221.43,0.12549]
[1734195661250,20.0,221.51,221.43,0.12549]
[1734195661477,20.0,221.52,221.43,0.12549]
[1734195662161,20.0,221.52,221.43,0.25098]
[1734195662481,20.0,221.51,221.43,0.25098]
[1734195663183,20.0,221.51,221.42,10.26325041]
[1734195663184,43.776884,221.5,221.42,1.6537]
[1734195663369,23.776884,221.5,221.42,1.6537]
[1734195664455,20.0,221.49,221.42,1.6537]
[1734195664667,15.12978375,221.57,221.42,1.6537]
[1734195664668,7.052776,221.53,221.43,8.86053041]
[1734195664859,20.0,221.5,221.43,8.86053041]
[1734195665187,20.0,221.5,221.43,0.25098]
[1734195665675,20.0,221.51,221.43,0.25098]
[1734195668663,20.0,221.51,221.42,1.6537]
[1734195668879,20.0,221.5,221.42,1.6537]
[1734195669068,20.0,221.48,221.42,1.6537]
[1734195669884,20.0,221.47,221.42,1.6537]
[1734195676897,20.0,221.47,221.26,21.2984]
[1734195676898,20.0,221.43,221.37,1.5441]
[1734195677101,23.776884,221.42,221.32,1.5441]
[1734195677404,20.0,221.39,221.32,1.5441]
[1734195679173,20.0,221.39,221.29,0.25098]
[1734195679802,20.0,221.39,221.3,0.12549]
[1734195680605,20.0,221.39,221.27,0.12549]
[1734195680801,20.0,221.39,221.27,0.25098]
[1734195681489,20.0,221.39,221.26,0.25098]
[1734195682210,20.0,221.39,221.27,0.12549]
[1734195682507,20.0,221.35,221.27,0.12549]
[1734195684106,20.0,221.35,221.25,10.15365041]
[1734195684107,23.776884,221.34,221.25,1.5441]
[1734195684801,20.0,221.31,221.25,1.5441]
[1734195686388,23.776884,221.3,221.18,1.5958]
[1734195686594,20.0,221.27,221.18,1.5958]
[1734195687305,23.776884,221.26,221.18,1.5958]
[1734195687510,20.0,221.23,221.18,1.5958]
[1734195690417,20.0,221.23,221.13,3.0661618]
[1734195691896,81.7,221.3,221.16,8.60955041]
[1734195692107,94.34655206,221.35,221.18,8.60955041]
[1734195692309,0.12549,221.33,221.17,0.25098]
[1734195693092,20.0,221.31,221.17,0.25098]
[1734195693498,20.0,221.32,221.19,8.60955041]
[1734195693736,20.0,221.32,221.21,8.60955041]
[1734195694025,96.14188165,221.35,221.21,8.60955041]
[1734195694205,96.14188165,221.35,221.19,8.73504041]
[1734195694414,96.14188165,221.35,221.19,0.12549]
[1734195695326,20.0,221.31,221.19,0.12549]
[1734195695621,96.14188165,221.35,221.18,16.72954041]
[1734195695622,20.0,221.27,221.18,8.11999]
[1734195696409,20.0,221.27,221.18,16.72954041]
[1734195697647,20.0,221.27,221.18,8.11999]
[1734195698127,20.0,221.27,221.18,7.9945]
[1734195698623,5.0,221.33,221.18,1.5958]
[1734195698624,20.0,221.23,221.18,1.5958]
[1734195698841,20.0,221.23,221.12,7.7168]
[1734195699406,20.0,221.23,221.12,16.32635041]
[1734195701309,20.0,221.23,221.13,11.67571221]
[1734195702132,10.0,221.31,221.17,8.60955041]
[1734195702133,20.0,221.31,221.17,8.60955041]
[1734195702424,20.0,221.32,221.18,8.60955041]
[1734195703115,20.0,221.31,221.16,8.60955041]
[1734195703316,0.12549,221.29,221.13,3.0661618]
[1734195703632,20.0,221.22,221.13,3.0661618]
[1734195704234,20.0,221.22,221.13,11.67571221]
[1734195704525,20.0,221.22,221.14,8.60955041]
[1734195704730,23.55,221.32,221.13,3.0661618]
[1734195704731,20.0,221.32,221.17,8.60955041]
[1734195705030,14.49920776,221.35,221.18,8.60955041]
[1734195705333,0.12549,221.34,221.2,1.5854]
[1734195705844,0.12549,221.34,221.2,10.19495041]
[1734195706537,20.0,221.32,221.2,1.5854]
[1734195706720,23.776884,221.3,221.2,1.5854]
[1734195707121,20.0,221.27,221.2,1.5854]
[1734195707713,20.0,221.27,221.21,8.60955041]
[1734195708225,23.776884,221.3,221.21,8.60955041]
[1734195709030,20.0,221.27,221.2,1.5854]
[1734195710147,20.0,221.27,221.2,10.19495041]
[1734195710556,20.0,221.27,221.26,8.86053041]
[1734195710713,5.0,221.41,221.26,1.5854]
[1734195711128,0.12549,221.38,221.26,1.5854]
[1734195711853,0.12549,221.36,221.21,8.0891]
[1734195712038,24.027864,221.36,221.21,8.0891]
[1734195712718,23.776884,221.32,221.21,8.0891]
[1734195712920,20.0,221.29,221.21,8.0891]
[1734195714531,20.0,221.25,221.21,1.5854]
[1734195714850,20.0,221.25,221.16,8.0891]
[1734195715141,20.0,221.25,221.17,30.0]
[1734195715321,20.0,221.25,221.16,8.0891]
[1734195717244,20.0,221.21,221.16,1.5854]
[1734195720650,20.0,221.21,221.13,3.0661618]
[1734195721234,23.776884,221.2,221.13,3.0661618]
[1734195721732,20.0,221.17,221.13,3.0661618]
[1734195722052,23.776884,221.16,221.13,3.0661618]
[1734195725344,43.902374,221.14,221.13,3.0661618]
[1734195726056,44.027864,221.14,221.13,3.0661618]
[1734195726558,20.0,221.06,221.0,10.0]
[1734195726757,20.0,221.06,221.02,30.0]
[1734195726933,20.0,221.06,221.0,10.0]
[1734195727134,23.776884,221.05,221.0,10.0]
[1734195728968,20.0,221.09,221.0,10.0]
[1734195729136,20.0,221.05,221.0,10.0]
[1734195730657,23.776884,221.04,221.0,10.0]
[1734195731956,43.776884,221.01,221.0,10.0]
[1734195733363,44.027864,221.01,221.0,10.0]
[1734195734863,43.902374,221.01,221.0,10.0]
[1734195735055,13.226,221.12,221.0,10.0]
[1734195735645,0.12549,221.11,221.0,10.0]
[1734195736669,0.12549,221.07,221.0,10.0]
[1734195736961,20.0,221.04,221.0,10.0]
[1734195737865,23.902374,221.03,221.0,10.0]
[1734195738166,20.0,221.03,221.0,10.0]
[1734195739565,0.12549,221.02,221.0,10.0]
[1734195739755,23.902374,221.02,221.0,10.0]
[1734195742246,5.12549,221.1,221.0,10.0]
[1734195742247,20.0,221.09,221.0,10.0]
[1734195742566,23.902374,221.08,221.0,10.0]
[1734195742760,20.0,221.05,221.0,10.0]
[1734195743540,8.226,221.12,221.0,10.0]
[1734195743763,8.226,221.12,221.01,13.47844367]
[1734195743968,5.12549,221.15,221.01,15.02474367]
[1734195744184,5.12549,221.15,221.01,1.5463]
[1734195744645,5.0,221.15,221.01,1.5463]
[1734195744974,0.12549,221.12,221.0,10.0]
[1734195745351,24.027864,221.12,221.0,10.0]
[1734195745771,20.0,221.05,221.0,10.0]
[1734195747587,23.776884,221.08,221.0,10.0]
[1734195747786,0.12549,221.14,221.0,23.47844367]
[1734195747957,24.027864,221.15,221.0,23.47844367]
[1734195748795,24.027864,221.15,221.0,10.0]
[1734195749091,20.0,221.08,221.0,10.0]
[1734195749761,24.027864,221.11,221.0,10.0]
[1734195750160,20.0,221.08,221.0,10.0]
[1734195750574,20.0,221.04,221.0,10.0]
[1734195753359,0.12549,221.03,221.0,10.0]
[1734195753563,20.12549,221.01,221.0,10.0]
[1734195753764,44.027864,221.01,221.0,10.0]
[1734195762405,24.027864,221.0,220.91,1.5463]
[1734195762613,23.902374,220.96,220.91,1.5463]
[1734195762985,20.0,220.93,220.89,0.5254264]
[1734195765980,20.0,220.9,220.89,0.5254264]
[1734195771389,23.902374,220.96,220.89,0.5254264]
[1734195771581,20.0,220.93,220.89,0.5254264]
[1734195775309,10.0,220.93,220.89,0.5254264]
[1734195779904,0.12549,220.95,220.89,0.5254264]
[1734195782194,23.776884,220.98,220.89,0.5254264]
[1734195782525,0.12549,220.93,220.89,0.5254264]
[1734195782906,20.0,220.91,220.89,0.5254264]
[1734195787916,0.12549,221.0,220.89,0.5254264]
[1734195788117,23.776884,221.01,220.89,0.5254264]
[1734195788408,0.12549,221.0,220.89,0.5254264]
[1734195788909,23.776884,220.99,220.89,0.5254264]
[1734195789135,23.776884,221.01,220.89,0.5254264]
[1734195789522,23.902374,220.97,220.89,0.5254264]
[1734195792511,23.776884,221.04,220.9,13.47844367]
[1734195792725,0.12549,221.03,220.9,13.47844367]
[1734195792930,0.25098,221.03,220.9,13.47844367]
[1734195793329,0.25098,221.03,220.89,0.5254264]
[1734195793534,0.25098,221.03,220.9,30.0]
[1734195793825,24.027864,221.0,220.9,30.0]
[1734195794439,24.027864,221.0,220.89,0.5254264]
[1734195795018,23.902374,221.0,220.89,0.5254264]
[1734195795434,23.902374,221.0,220.89,14.00387007]
[1734195796343,20.0,221.03,220.9,15.14394367]
[1734195796509,20.0,221.05,220.92,13.47844367]
[1734195797630,20.0,221.01,220.9,1.6655]
[1734195797837,20.0,221.01,220.91,30.0]
[1734195802847,23.902374,221.04,220.91,30.0]
[1734195803054,21.91134976,221.12,220.96,13.47844367]
[1734195803055,7.052776,221.1,220.96,13.47844367]
[1734195803253,7.052776,221.11,220.98,15.03644367]
[1734195803432,9.76231752,221.13,220.98,15.03644367]
[1734195803754,0.12549,221.12,220.98,15.03644367]
[1734195804353,7.178266,221.12,220.98,1.558]
[1734195804544,20.12549,221.09,220.98,1.558]
[1734195804740,0.12549,221.07,220.98,1.558]
[1734195805061,0.12549,221.07,220.98,31.558]
[1734195805555,23.776884,221.11,220.99,13.47844367]
[1734195805728,16.81509352,221.13,220.99,13.47844367]
[1734195805729,23.776884,221.12,220.99,13.47844367]
[1734195806260,0.12549,221.11,220.98,15.03644367]
[1734195806454,0.12549,221.11,220.98,1.558]
[1734195806771,20.0,221.09,220.98,1.558]
[1734195807060,20.0,221.09,220.98,15.03644367]
[1734195807463,20.0,221.09,220.99,13.47844367]
[1734195807713,9.76231752,221.13,221.03,13.47844367]
[1734195807714,20.0,221.13,221.03,13.47844367]
[1734195808079,0.12549,221.12,221.03,13.47844367]
[1734195808285,7.052776,221.18,221.03,13.47844367]
[1734195808602,0.12549,221.18,221.03,13.47844367]
[1734195808772,1.80739112,221.18,221.03,43.47844367]
[1734195808964,7.052776,221.2,221.06,13.47844367]
[1734195809164,0.12549,221.2,221.06,13.47844367]
[1734195809395,13.603934,221.2,221.05,13.47844367]
[1734195809690,0.12549,221.2,221.05,13.47844367]
[1734195809866,7.052776,221.21,221.06,30.0]
[1734195810067,0.12549,221.15,221.04,1.537]
[1734195810267,20.0,221.11,221.04,1.537]
[1734195812000,23.902374,221.1,220.99,8.0371]
[1734195812307,23.902374,221.1,221.01,30.0]
[1734195812471,20.0,221.07,221.01,30.0]
[1734195813603,20.0,221.07,220.99,1.537]
[1734195816465,23.776884,221.06,220.94,13.47844367]
[1734195816796,23.776884,221.06,220.95,13.47844367]
[1734195816957,23.776884,221.06,220.96,13.47844367]
[1734195817786,23.776884,221.06,220.97,30.0]
[1734195820479,21.81714324,221.13,220.97,13.47844367]
[1734195820788,23.776884,221.08,220.98,13.47844367]
[1734195820974,20.0,221.05,220.98,13.47844367]
[1734195821978,20.0,221.05,220.94,0.25098]
[1734195822188,20.0,221.05,220.95,30.0]
[1734195822559,20.0,221.05,220.98,13.47844367]
[1734195824079,20.0,221.05,220.97,13.47844367]
[1734195824763,20.0,221.05,220.96,0.25098]
[1734195824764,20.0,221.05,220.95,43.47844367]
[1734195825186,20.0,221.05,220.95,38.64628084]
[1734195826083,0.12549,221.15,220.95,38.64628084]
[1734195826084,15.264076,221.17,221.05,0.12549]
[1734195826390,8.2113,221.17,221.08,8.64628084]
[1734195826560,8.2113,221.17,221.07,8.64628084]
[1734195826964,8.2113,221.17,221.05,8.64628084]
[1734195827160,8.2113,221.17,221.05,13.49690912]
[1734195827364,8.2113,221.17,221.03,0.25098]
[1734195827365,20.0,221.13,221.02,15.08740912]
[1734195827584,23.776884,221.12,221.03,30.0]
[1734195828165,23.776884,221.12,221.02,1.5905]
[1734195828664,20.0,221.09,221.02,1.5905]
[1734195828863,23.776884,221.12,220.99,33.49690912]
[1734195829081,23.776884,221.12,221.0,30.0]
[1734195829082,20.0,221.09,221.0,30.0]
[1734195830285,20.0,221.09,221.0,13.62239912]
[1734195830487,20.0,221.09,221.02,13.49690912]
[1734195833288,23.776884,221.12,221.04,13.49690912]
[1734195833488,23.776884,221.12,221.03,13.49690912]
[1734195837493,8.2113,221.17,221.04,13.49690912]
[1734195837691,8.2113,221.17,220.99,20.67851569]
[1734195837692,8.2113,221.17,221.08,13.49690912]
[1734195837891,8.2113,221.17,221.09,13.49690912]
[1734195838078,17.73089767,221.26,221.02,23.902374]
[1734195838079,8.1935,221.22,221.11,13.49690912]
[1734195839385,20.0,221.19,221.11,43.49690912]
[1734195839586,20.0,221.19,221.11,30.0]
[1734195840494,20.0,221.19,221.08,13.49690912]
[1734195840696,20.0,221.19,221.09,30.0]
[1734195840697,23.776884,221.18,221.09,30.0]
[1734195840872,20.0,221.15,221.09,30.0]
[1734195842798,20.0,221.15,221.03,0.25098]
[1734195843008,20.0,221.15,221.03,43.74788912]
[1734195843478,20.0,221.15,221.05,13.49690912]
[1734195843683,20.0,221.15,221.07,13.49690912]
[1734195843990,20.0,221.15,221.03,30.92943501]
[1734195843991,20.0,221.15,221.06,13.49690912]
[1734195844586,15.246276,221.22,221.09,13.62239912]
[1734195844893,15.246276,221.22,221.09,13.49690912]
[1734195845107,8.1935,221.22,221.09,13.49690912]
[1734195845280,8.1935,221.22,221.08,13.49690912]
[1734195845481,8.1935,221.22,221.09,0.12549]
[1734195845795,20.0,221.19,221.09,0.12549]
[1734195845985,23.776884,221.17,221.06,13.49690912]
[1734195846186,20.0,221.14,221.07,30.0]
[1734195847480,20.0,221.14,221.06,13.49690912]
[1734195851804,28.1427,221.14,221.01,0.12549]
[1734195852009,28.1427,221.14,221.02,30.0]
[1734195852010,20.0,221.1,221.02,30.0]
[1734195852498,23.776884,221.09,221.02,30.0]
[1734195853392,23.776884,221.09,220.97,8.64403617]
[1734195853587,23.776884,221.09,220.98,30.0]
[1734195853984,23.776884,221.09,220.99,8.64403617]
[1734195854206,20.0,221.1,221.0,8.64403617]
[1734195854504,20.0,221.11,221.02,8.64403617]
[1734195855400,20.0,221.11,221.02,13.50029277]
[1734195855893,20.0,221.11,220.99,13.75127277]
[1734195856498,20.0,221.11,221.0,13.50029277]
[1734195857204,20.0,221.11,220.99,13.75127277]
[1734195857405,20.0,221.07,220.99,0.12549]
[1734195857705,20.0,221.07,220.99,13.62578277]
[1734195860794,20.0,221.07,220.99,0.12549]
[1734195861005,7.727,221.06,220.96,43.50029277]
[1734195861206,7.727,221.06,220.97,0.12549]
[1734195861508,7.727,221.06,220.96,30.0]
[1734195862883,7.727,221.06,220.96,0.12549]
[1734195863285,7.727,221.06,220.96,13.62578277]
[1734195865507,7.727,221.06,220.97,13.50029277]
[1734195866796,7.727,221.06,220.96,13.50029277]
[1734195867723,7.727,221.06,220.97,13.50029277]
[1734195869839,23.776884,221.05,220.92,0.80420241]
[1734195870026,23.776884,221.05,220.94,30.0]
[1734195870027,20.0,221.02,220.94,30.0]
[1734195871012,20.0,221.02,220.92,30.0]
[1734195872216,20.0,221.02,220.91,0.12549]
[1734195872592,20.0,220.98,220.89,0.5254264]
[1734195872797,20.0,220.98,220.9,30.0]
[1734195874117,7.727,220.97,220.89,0.5254264]